[Event "January 2 Early 2024"]
[Site "https://www.chess.com"]
[Date "2024.01.02"]
[Round "6"]
[White "Gritsenko, Nikolai"]
[Black "Jeet, Jain"]
[Result "0-1"]
[Board "67"]
[TimeControl "180+1"]
[WhiteFideId "14112493"]
[BlackFideId "5073022"]
[WhiteElo "2683"]
[BlackElo "2550"]
[WhiteTeam "UKR"]
[BlackTeam "IND"]
[WhiteClock "0:00:00"]
[BlackClock "0:00:21"]

1. e4 {[%clk 0:03:00]}  d6 {[%clk 0:02:27]} 2. d4 {[%clk 0:02:58]}  g6 {[%clk 0:02:27]} 3. Nc3 {[%clk 0:02:58]}  Nf6 {[%clk 0:02:27]} 4. Nf3 {[%clk 0:02:56]}  c6 {[%clk 0:02:28]} 5. Be2 {[%clk 0:02:52]}  Nbd7 {[%clk 0:02:28]} 6. e5 {[%clk 0:02:51]}  Nd5 {[%clk 0:02:26]} 7. exd6 {[%clk 0:02:36]}  e6 {[%clk 0:02:26]} 8. Ne4 {[%clk 0:02:32]}  N5f6 {[%clk 0:02:20]} 9. Bg5 {[%clk 0:02:06]}  h6 {[%clk 0:02:16]} 10. Nxf6+ {[%clk 0:02:01]}  Nxf6 {[%clk 0:02:15]} 11. Bf4 {[%clk 0:01:55]}  Bxd6 {[%clk 0:02:15]} 12. Bxd6 {[%clk 0:01:51]}  Qxd6 {[%clk 0:02:16]} 13. O-O {[%clk 0:01:43]}  O-O {[%clk 0:02:16]} 14. c3 {[%clk 0:01:42]}  Kg7 {[%clk 0:02:16]} 15. Re1 {[%clk 0:01:40]}  c5 {[%clk 0:02:16]} 16. dxc5 {[%clk 0:01:39]}  Qxc5 {[%clk 0:02:17]} 17. Qd4 {[%clk 0:01:39]}  Qxd4 {[%clk 0:02:14]} 18. Nxd4 {[%clk 0:01:39]}  e5 {[%clk 0:02:11]} 19. Nf3 {[%clk 0:01:32]}  e4 {[%clk 0:02:08]} 20. Nd4 {[%clk 0:01:31]}  Bd7 {[%clk 0:02:08]} 21. Rad1 {[%clk 0:01:30]}  Rfd8 {[%clk 0:02:06]} 22. h3 {[%clk 0:01:19]}  Rac8 {[%clk 0:02:05]} 23. Bf1 {[%clk 0:01:11]}  h5 {[%clk 0:02:02]} 24. g3 {[%clk 0:01:10]}  Re8 {[%clk 0:01:53]} 25. Bg2 {[%clk 0:01:09]}  Rc5 {[%clk 0:01:53]} 26. Rd2 {[%clk 0:01:05]}  Rce5 {[%clk 0:01:52]} 27. Rde2 {[%clk 0:01:04]}  b6 {[%clk 0:01:50]} 28. f3 {[%clk 0:00:53]}  Bb5 {[%clk 0:01:34]} 29. Nxb5 {[%clk 0:00:40]}  Rxb5 {[%clk 0:01:34]} 30. fxe4 {[%clk 0:00:40]}  Nd7 {[%clk 0:01:32]} 31. b3 {[%clk 0:00:36]}  Ne5 {[%clk 0:01:31]} 32. Rd1 {[%clk 0:00:33]}  h4 {[%clk 0:01:27]} 33. gxh4 {[%clk 0:00:29]}  Rc5 {[%clk 0:01:26]} 34. c4 {[%clk 0:00:28]}  Rc6 {[%clk 0:01:24]} 35. Kf2 {[%clk 0:00:26]}  Rf6+ {[%clk 0:01:20]} 36. Kg3 {[%clk 0:00:26]}  Rfe6 {[%clk 0:01:15]} 37. Rf2 {[%clk 0:00:25]}  a5 {[%clk 0:01:08]} 38. Rd5 {[%clk 0:00:21]}  a4 {[%clk 0:01:07]} 39. Rb5 {[%clk 0:00:20]}  Ra8 {[%clk 0:01:03]} 40. c5 {[%clk 0:00:15]}  bxc5 {[%clk 0:01:02]} 41. Rxc5 {[%clk 0:00:15]}  Nd3 {[%clk 0:01:03]} 42. Rcc2 {[%clk 0:00:10]}  Nxf2 {[%clk 0:01:02]} 43. Rxf2 {[%clk 0:00:10]}  axb3 {[%clk 0:01:03]} 44. axb3 {[%clk 0:00:11]}  Ra3 {[%clk 0:01:03]} 45. Rf3 {[%clk 0:00:07]}  Rb6 {[%clk 0:01:02]} 46. Kf4 {[%clk 0:00:07]}  Rbxb3 {[%clk 0:01:00]} 47. Rxb3 {[%clk 0:00:07]}  Rxb3 {[%clk 0:01:01]} 48. Bf3 {[%clk 0:00:07]}  Kf6 {[%clk 0:01:00]} 49. Bg4 {[%clk 0:00:07]}  Rb4 {[%clk 0:00:59]} 50. Bf3 {[%clk 0:00:06]}  Rc4 {[%clk 0:00:57]} 51. Bg4 {[%clk 0:00:06]}  Ra4 {[%clk 0:00:57]} 52. Bf3 {[%clk 0:00:06]}  Ra8 {[%clk 0:00:54]} 53. Bg4 {[%clk 0:00:06]}  Rh8 {[%clk 0:00:54]} 54. e5+ {[%clk 0:00:04]}  Kg7 {[%clk 0:00:54]} 55. Kg3 {[%clk 0:00:03]}  Rb8 {[%clk 0:00:54]} 56. h5 {[%clk 0:00:02]}  g5 {[%clk 0:00:48]} 57. e6 {[%clk 0:00:02]}  Rb3+ {[%clk 0:00:43]} 58. Kf2 {[%clk 0:00:01]}  fxe6 {[%clk 0:00:34]} 59. Bxe6 {[%clk 0:00:01]}  Kf6 {[%clk 0:00:32]} 60. Bg4 {[%clk 0:00:02]}  Rb7 {[%clk 0:00:29]} 61. Ke2 {[%clk 0:00:02]}  Ke5 {[%clk 0:00:29]} 62. Kd3 {[%clk 0:00:02]}  Kf4 {[%clk 0:00:28]} 63. Kd4 {[%clk 0:00:02]}  Re7 {[%clk 0:00:27]} 64. Kd5 {[%clk 0:00:02]}  Kg3 {[%clk 0:00:26]} 65. Kd6 {[%clk 0:00:02]}  Re3 {[%clk 0:00:22]} 66. h6 {[%clk 0:00:01]}  Re8 {[%clk 0:00:21]} 67. h7 {[%clk 0:00:01]}  Kf4 {[%clk 0:00:21]} 68. Kd7 {[%clk 0:00:00]}  Rh8 {[%clk 0:00:21]} 0-1

[Event "January 2 Early 2024"]
[Site "https://www.chess.com"]
[Date "2024.01.02"]
[Round "6"]
[White "Matyunin, Maxim"]
[Black "Csonka, Balazs"]
[Result "0-1"]
[Board "69"]
[TimeControl "180+1"]
[WhiteFideId "34106682"]
[BlackFideId "742910"]
[WhiteElo "2541"]
[BlackElo "2674"]
[WhiteTeam "RUS"]
[BlackTeam "HUN"]
[WhiteClock "0:00:48"]
[BlackClock "0:00:06"]

1. d4 {[%clk 0:03:00]}  d6 {[%clk 0:03:00]} 2. Nf3 {[%clk 0:03:00]}  Nf6 {[%clk 0:02:59]} 3. c4 {[%clk 0:03:00]}  g6 {[%clk 0:02:58]} 4. Nc3 {[%clk 0:02:59]}  Bg7 {[%clk 0:02:59]} 5. Bg5 {[%clk 0:02:59]}  O-O {[%clk 0:02:58]} 6. e3 {[%clk 0:02:59]}  c5 {[%clk 0:02:56]} 7. d5 {[%clk 0:02:58]}  Qb6 {[%clk 0:02:49]} 8. Qb3 {[%clk 0:02:46]}  h6 {[%clk 0:02:32]} 9. Bh4 {[%clk 0:02:45]}  Bf5 {[%clk 0:02:28]} 10. Be2 {[%clk 0:02:43]}  g5 {[%clk 0:02:25]} 11. Bg3 {[%clk 0:02:43]}  Ne4 {[%clk 0:02:25]} 12. Nxe4 {[%clk 0:02:40]}  Bxe4 {[%clk 0:02:26]} 13. Nd2 {[%clk 0:02:25]}  Bxb2 {[%clk 0:01:55]} 14. Rd1 {[%clk 0:02:07]}  Qxb3 {[%clk 0:01:52]} 15. axb3 {[%clk 0:02:08]}  Bc2 {[%clk 0:01:52]} 16. O-O {[%clk 0:02:07]}  Bxd1 {[%clk 0:01:51]} 17. Rxd1 {[%clk 0:02:08]}  Nd7 {[%clk 0:01:48]} 18. f4 {[%clk 0:02:07]}  a5 {[%clk 0:01:42]} 19. h4 {[%clk 0:02:07]}  a4 {[%clk 0:01:37]} 20. bxa4 {[%clk 0:02:06]}  Rxa4 {[%clk 0:01:38]} 21. hxg5 {[%clk 0:02:06]}  hxg5 {[%clk 0:01:38]} 22. fxg5 {[%clk 0:01:53]}  Ra1 {[%clk 0:01:38]} 23. Rxa1 {[%clk 0:01:53]}  Bxa1 {[%clk 0:01:38]} 24. Kf2 {[%clk 0:01:52]}  Be5 {[%clk 0:01:38]} 25. Bh4 {[%clk 0:01:52]}  Ra8 {[%clk 0:01:35]} 26. Ne4 {[%clk 0:01:49]}  Kf8 {[%clk 0:01:31]} 27. Bg4 {[%clk 0:01:47]}  Nb6 {[%clk 0:01:25]} 28. g6 {[%clk 0:01:35]}  fxg6 {[%clk 0:01:23]} 29. Ng5 {[%clk 0:01:34]}  Ra2+ {[%clk 0:01:21]} 30. Kf3 {[%clk 0:01:34]}  Nxc4 {[%clk 0:01:19]} 31. Bd7 {[%clk 0:01:30]}  Bf6 {[%clk 0:01:09]} 32. Ne6+ {[%clk 0:01:27]}  Kg8 {[%clk 0:01:05]} 33. Bg3 {[%clk 0:01:22]}  Ne5+ {[%clk 0:00:58]} 34. Bxe5 {[%clk 0:01:21]}  Bxe5 {[%clk 0:00:59]} 35. Be8 {[%clk 0:01:16]}  c4 {[%clk 0:00:57]} 36. Bxg6 {[%clk 0:01:15]}  c3 {[%clk 0:00:57]} 37. g4 {[%clk 0:00:59]}  c2 {[%clk 0:00:56]} 38. Bxc2 {[%clk 0:00:59]}  Rxc2 {[%clk 0:00:57]} 39. Ke4 {[%clk 0:01:00]}  b5 {[%clk 0:00:56]} 40. Kf5 {[%clk 0:01:00]}  b4 {[%clk 0:00:56]} 41. Kg6 {[%clk 0:01:00]}  b3 {[%clk 0:00:56]} 42. g5 {[%clk 0:01:00]}  b2 {[%clk 0:00:56]} 43. e4 {[%clk 0:01:01]}  b1=Q {[%clk 0:00:54]} 44. Nd8 {[%clk 0:00:56]}  Rh2 {[%clk 0:00:50]} 45. Kf5 {[%clk 0:00:56]}  Rf2+ {[%clk 0:00:38]} 46. Ke6 {[%clk 0:00:56]}  Qxe4 {[%clk 0:00:38]} 47. Kd7 {[%clk 0:00:55]}  Qxd5 {[%clk 0:00:36]} 48. g6 {[%clk 0:00:55]}  Qb5+ {[%clk 0:00:31]} 49. Nc6 {[%clk 0:00:50]}  Rc2 {[%clk 0:00:30]} 50. Ke6 {[%clk 0:00:50]}  Qxc6 {[%clk 0:00:27]} 51. g7 {[%clk 0:00:51]}  Bf6 {[%clk 0:00:26]} 52. Kf5 {[%clk 0:00:50]}  d5 {[%clk 0:00:26]} 53. Kg6 {[%clk 0:00:49]}  d4 {[%clk 0:00:25]} 54. Kf5 {[%clk 0:00:50]}  d3 {[%clk 0:00:26]} 55. Kg6 {[%clk 0:00:49]}  d2 {[%clk 0:00:26]} 56. Kf5 {[%clk 0:00:50]}  d1=Q {[%clk 0:00:25]} 57. Kg6 {[%clk 0:00:51]}  e5 {[%clk 0:00:25]} 58. Kf5 {[%clk 0:00:51]}  e4 {[%clk 0:00:25]} 59. Kf4 {[%clk 0:00:50]}  Qd3 {[%clk 0:00:18]} 60. Kf5 {[%clk 0:00:49]}  e3+ {[%clk 0:00:17]} 61. Kf4 {[%clk 0:00:49]}  Qe6 {[%clk 0:00:14]} 62. Kg3 {[%clk 0:00:49]}  e2+ {[%clk 0:00:13]} 63. Kf4 {[%clk 0:00:50]}  Qed6+ {[%clk 0:00:09]} 64. Kg4 {[%clk 0:00:49]}  Qe4+ {[%clk 0:00:07]} 65. Kh5 {[%clk 0:00:48]}  Qh1+ {[%clk 0:00:06]} 66. Kg6 {[%clk 0:00:48]}  e1=Q {[%clk 0:00:06]} 67. Kf5 {[%clk 0:00:48]}  Qee4# {[%clk 0:00:06]} 0-1

[Event "January 2 Early 2024"]
[Site "https://www.chess.com"]
[Date "2024.01.02"]
[Round "6"]
[White "Aldokhin, Ivan"]
[Black "Kochiev, Ivan"]
[Result "1-0"]
[Board "70"]
[TimeControl "180+1"]
[WhiteFideId "24115720"]
[BlackFideId "2917890"]
[WhiteElo "2670"]
[BlackElo "2541"]
[WhiteTeam "RUS"]
[BlackTeam "BUL"]
[WhiteClock "0:00:03"]
[BlackClock "0:00:05"]

1. e4 {[%clk 0:02:57]}  c5 {[%clk 0:02:59]} 2. Nf3 {[%clk 0:02:58]}  d6 {[%clk 0:02:58]} 3. d4 {[%clk 0:02:58]}  cxd4 {[%clk 0:02:59]} 4. Nxd4 {[%clk 0:02:59]}  Nf6 {[%clk 0:03:00]} 5. Nc3 {[%clk 0:02:59]}  Nc6 {[%clk 0:03:01]} 6. Bc4 {[%clk 0:02:52]}  e6 {[%clk 0:03:01]} 7. Bb3 {[%clk 0:02:52]}  a6 {[%clk 0:03:01]} 8. Be3 {[%clk 0:02:52]}  Qc7 {[%clk 0:03:01]} 9. Qe2 {[%clk 0:02:39]}  Be7 {[%clk 0:02:56]} 10. O-O-O {[%clk 0:02:39]}  b5 {[%clk 0:02:56]} 11. g4 {[%clk 0:02:12]}  b4 {[%clk 0:02:37]} 12. Nxc6 {[%clk 0:01:44]}  bxc3 {[%clk 0:02:37]} 13. Nxe7 {[%clk 0:01:44]}  cxb2+ {[%clk 0:02:37]} 14. Kb1 {[%clk 0:01:41]}  Qxe7 {[%clk 0:02:34]} 15. f3 {[%clk 0:01:35]}  O-O {[%clk 0:02:29]} 16. g5 {[%clk 0:01:30]}  Nd7 {[%clk 0:02:28]} 17. Qd2 {[%clk 0:01:30]}  Bb7 {[%clk 0:02:06]} 18. Qxd6 {[%clk 0:01:27]}  Qxd6 {[%clk 0:02:07]} 19. Rxd6 {[%clk 0:01:25]}  Ne5 {[%clk 0:02:08]} 20. Rf1 {[%clk 0:01:10]}  a5 {[%clk 0:02:07]} 21. a4 {[%clk 0:01:05]}  Rfd8 {[%clk 0:02:01]} 22. Rxd8+ {[%clk 0:00:51]}  Rxd8 {[%clk 0:02:02]} 23. Kxb2 {[%clk 0:00:50]}  Ba6 {[%clk 0:01:36]} 24. Rf2 {[%clk 0:00:46]}  Nc4+ {[%clk 0:01:33]} 25. Bxc4 {[%clk 0:00:44]}  Bxc4 {[%clk 0:01:34]} 26. Rd2 {[%clk 0:00:45]}  Rb8+ {[%clk 0:01:18]} 27. Kc3 {[%clk 0:00:44]}  Bf1 {[%clk 0:01:14]} 28. Bb6 {[%clk 0:00:36]}  h6 {[%clk 0:01:03]} 29. Rd8+ {[%clk 0:00:34]}  Rxd8 {[%clk 0:00:57]} 30. Bxd8 {[%clk 0:00:35]}  hxg5 {[%clk 0:00:55]} 31. Kd4 {[%clk 0:00:31]}  f6 {[%clk 0:00:34]} 32. e5 {[%clk 0:00:20]}  Kf7 {[%clk 0:00:34]} 33. Bxa5 {[%clk 0:00:18]}  Bg2 {[%clk 0:00:32]} 34. Ke3 {[%clk 0:00:14]}  Bf1 {[%clk 0:00:21]} 35. Bc3 {[%clk 0:00:12]}  Ke7 {[%clk 0:00:16]} 36. a5 {[%clk 0:00:11]}  f5 {[%clk 0:00:14]} 37. f4 {[%clk 0:00:10]}  g4 {[%clk 0:00:07]} 38. Kf2 {[%clk 0:00:10]}  Ba6 {[%clk 0:00:04]} 39. Kg3 {[%clk 0:00:11]}  Kf7 {[%clk 0:00:04]} 40. Kh4 {[%clk 0:00:10]}  Kg6 {[%clk 0:00:05]} 41. Be1 {[%clk 0:00:09]}  Bc4 {[%clk 0:00:05]} 42. Kg3 {[%clk 0:00:08]}  Ba6 {[%clk 0:00:06]} 43. Kf2 {[%clk 0:00:09]}  Kf7 {[%clk 0:00:06]} 44. Ke3 {[%clk 0:00:09]}  Ke7 {[%clk 0:00:06]} 45. Kd4 {[%clk 0:00:09]}  Kd7 {[%clk 0:00:07]} 46. Kc5 {[%clk 0:00:08]}  Kc7 {[%clk 0:00:07]} 47. c4 {[%clk 0:00:07]}  Bc8 {[%clk 0:00:08]} 48. Bh4 {[%clk 0:00:07]}  g6 {[%clk 0:00:03]} 49. Be7 {[%clk 0:00:07]}  Bb7 {[%clk 0:00:01]} 50. Kb5 {[%clk 0:00:04]}  Bc8 {[%clk 0:00:01]} 51. Bd6+ {[%clk 0:00:04]}  Kb7 {[%clk 0:00:01]} 52. a6+ {[%clk 0:00:04]}  Ka7 {[%clk 0:00:02]} 53. Bc5+ {[%clk 0:00:05]}  Kb8 {[%clk 0:00:02]} 54. Kb6 {[%clk 0:00:04]}  Bd7 {[%clk 0:00:03]} 55. Bd6+ {[%clk 0:00:05]}  Ka8 {[%clk 0:00:03]} 56. Be7 {[%clk 0:00:02]}  Be8 {[%clk 0:00:03]} 57. c5 {[%clk 0:00:03]}  Bd7 {[%clk 0:00:03]} 58. c6 {[%clk 0:00:03]}  Be8 {[%clk 0:00:04]} 59. Kc7 {[%clk 0:00:02]}  Ka7 {[%clk 0:00:04]} 60. Kd6 {[%clk 0:00:02]}  Kxa6 {[%clk 0:00:03]} 61. c7 {[%clk 0:00:02]}  Kb7 {[%clk 0:00:04]} 62. Bd8 {[%clk 0:00:02]}  Kc8 {[%clk 0:00:05]} 63. Kxe6 {[%clk 0:00:02]}  Bc6 {[%clk 0:00:05]} 64. Kf6 {[%clk 0:00:02]}  Be4 {[%clk 0:00:05]} 65. Kxg6 {[%clk 0:00:02]}  Kd7 {[%clk 0:00:06]} 66. Kf6 {[%clk 0:00:03]}  Bd3 {[%clk 0:00:06]} 67. e6+ {[%clk 0:00:03]}  Kc8 {[%clk 0:00:07]} 68. e7 {[%clk 0:00:03]}  Bb5 {[%clk 0:00:07]} 69. Kf7 {[%clk 0:00:03]}  Bc4+ {[%clk 0:00:06]} 70. Kf8 {[%clk 0:00:03]}  g3 {[%clk 0:00:05]} 71. hxg3 {[%clk 0:00:03]} 1-0

[Event "January 2 Early 2024"]
[Site "https://www.chess.com"]
[Date "2024.01.02"]
[Round "6"]
[White "Injac, Teodora"]
[Black "Rangel, Daniel"]
[Result "1/2-1/2"]
[Board "71"]
[TimeControl "180+1"]
[WhiteFideId "932400"]
[BlackFideId "2124475"]
[WhiteElo "2668"]
[BlackElo "2538"]
[WhiteTeam "SRB"]
[BlackTeam "BRA"]
[WhiteClock "0:00:06"]
[BlackClock "0:00:04"]

1. d4 {[%clk 0:03:00]}  Nf6 {[%clk 0:02:57]} 2. Nf3 {[%clk 0:03:01]}  e6 {[%clk 0:02:58]} 3. Bg5 {[%clk 0:03:01]}  d5 {[%clk 0:02:56]} 4. e3 {[%clk 0:03:01]}  Be7 {[%clk 0:02:56]} 5. Nbd2 {[%clk 0:03:01]}  O-O {[%clk 0:02:56]} 6. Bd3 {[%clk 0:02:59]}  b6 {[%clk 0:02:56]} 7. Qe2 {[%clk 0:02:55]}  Bb7 {[%clk 0:02:55]} 8. c3 {[%clk 0:02:55]}  c5 {[%clk 0:02:52]} 9. h4 {[%clk 0:02:51]}  Ne4 {[%clk 0:02:47]} 10. Bf4 {[%clk 0:02:49]}  f5 {[%clk 0:02:45]} 11. h5 {[%clk 0:02:41]}  c4 {[%clk 0:02:40]} 12. Bc2 {[%clk 0:02:40]}  Nd7 {[%clk 0:02:39]} 13. Ne5 {[%clk 0:02:27]}  Nxe5 {[%clk 0:02:32]} 14. Bxe5 {[%clk 0:02:26]}  Bd6 {[%clk 0:02:29]} 15. Nf3 {[%clk 0:02:22]}  b5 {[%clk 0:02:05]} 16. h6 {[%clk 0:02:18]}  g6 {[%clk 0:01:58]} 17. Bg7 {[%clk 0:02:06]}  Rf7 {[%clk 0:01:51]} 18. Ne5 {[%clk 0:02:06]}  Rc7 {[%clk 0:01:46]} 19. Rh3 {[%clk 0:01:24]}  b4 {[%clk 0:01:31]} 20. f3 {[%clk 0:01:13]}  Ng5 {[%clk 0:01:29]} 21. Rg3 {[%clk 0:01:07]}  Nf7 {[%clk 0:01:27]} 22. Qf2 {[%clk 0:00:45]}  bxc3 {[%clk 0:01:11]} 23. bxc3 {[%clk 0:00:45]}  Nxe5 {[%clk 0:01:08]} 24. dxe5 {[%clk 0:00:44]}  Be7 {[%clk 0:01:06]} 25. Kd2 {[%clk 0:00:38]}  Bh4 {[%clk 0:01:02]} 26. Rh1 {[%clk 0:00:37]}  Bxg3 {[%clk 0:01:02]} 27. Qxg3 {[%clk 0:00:37]}  Bc6 {[%clk 0:00:51]} 28. Bf6 {[%clk 0:00:37]}  Qf8 {[%clk 0:00:43]} 29. Qg5 {[%clk 0:00:30]}  Rb8 {[%clk 0:00:40]} 30. g4 {[%clk 0:00:30]}  Rb2 {[%clk 0:00:35]} 31. gxf5 {[%clk 0:00:28]}  exf5 {[%clk 0:00:26]} 32. e6 {[%clk 0:00:10]}  Qa3 {[%clk 0:00:19]} 33. Rc1 {[%clk 0:00:05]}  Ba4 {[%clk 0:00:15]} 34. Be5 {[%clk 0:00:04]}  Bxc2 {[%clk 0:00:09]} 35. Qd8+ {[%clk 0:00:04]}  Qf8 {[%clk 0:00:07]} 36. Qxc7 {[%clk 0:00:03]}  Bd3+ {[%clk 0:00:04]} 37. Ke1 {[%clk 0:00:03]}  Re2+ {[%clk 0:00:04]} 38. Kd1 {[%clk 0:00:04]}  Rf2 {[%clk 0:00:03]} 39. e7 {[%clk 0:00:03]}  Rf1+ {[%clk 0:00:03]} 40. Kd2 {[%clk 0:00:04]}  Rf2+ {[%clk 0:00:03]} 41. Kd1 {[%clk 0:00:04]}  Rf1+ {[%clk 0:00:03]} 42. Kd2 {[%clk 0:00:05]}  Rf2+ {[%clk 0:00:04]} 43. Kd1 {[%clk 0:00:06]} 1/2-1/2

[Event "January 2 Early 2024"]
[Site "https://www.chess.com"]
[Date "2024.01.02"]
[Round "6"]
[White "Vlassov, Nikolai"]
[Black "Petukhov, Dmitry"]
[Result "1-0"]
[Board "72"]
[TimeControl "180+1"]
[WhiteFideId "4103360"]
[BlackFideId "4142748"]
[WhiteElo "2667"]
[BlackElo "2530"]
[WhiteTeam "FID"]
[BlackTeam "RUS"]
[WhiteClock "0:00:15"]
[BlackClock "0:00:07"]

1. e4 {[%clk 0:03:00]}  c5 {[%clk 0:02:58]} 2. c3 {[%clk 0:02:58]}  d5 {[%clk 0:02:57]} 3. exd5 {[%clk 0:02:58]}  Qxd5 {[%clk 0:02:57]} 4. d4 {[%clk 0:02:58]}  Nf6 {[%clk 0:02:56]} 5. Nf3 {[%clk 0:02:58]}  e6 {[%clk 0:02:55]} 6. a3 {[%clk 0:02:57]}  Nc6 {[%clk 0:02:43]} 7. Be3 {[%clk 0:02:57]}  cxd4 {[%clk 0:02:36]} 8. cxd4 {[%clk 0:02:58]}  Be7 {[%clk 0:02:30]} 9. Nc3 {[%clk 0:02:57]}  Qd6 {[%clk 0:02:22]} 10. Qc2 {[%clk 0:02:57]}  a6 {[%clk 0:02:18]} 11. Rc1 {[%clk 0:02:56]}  O-O {[%clk 0:02:14]} 12. Bd3 {[%clk 0:02:56]}  Bd7 {[%clk 0:02:07]} 13. b4 {[%clk 0:02:56]}  Rad8 {[%clk 0:01:57]} 14. O-O {[%clk 0:02:46]}  h6 {[%clk 0:01:56]} 15. Qd2 {[%clk 0:02:45]}  Nd5 {[%clk 0:01:51]} 16. Ne4 {[%clk 0:02:28]}  Qb8 {[%clk 0:01:47]} 17. Bxh6 {[%clk 0:02:27]}  f5 {[%clk 0:01:42]} 18. Nc5 {[%clk 0:01:59]}  gxh6 {[%clk 0:01:42]} 19. Qxh6 {[%clk 0:01:59]}  Rf6 {[%clk 0:01:42]} 20. Qg5+ {[%clk 0:01:55]}  Kf8 {[%clk 0:01:39]} 21. Bc4 {[%clk 0:01:50]}  Qf4 {[%clk 0:01:21]} 22. Bxd5 {[%clk 0:01:45]}  Qxg5 {[%clk 0:01:16]} 23. Nxg5 {[%clk 0:01:43]}  exd5 {[%clk 0:01:17]} 24. Nh7+ {[%clk 0:01:43]}  Kf7 {[%clk 0:01:08]} 25. Nxf6 {[%clk 0:01:42]}  Kxf6 {[%clk 0:01:09]} 26. Nxb7 {[%clk 0:01:42]}  Nxd4 {[%clk 0:01:01]} 27. Nxd8 {[%clk 0:00:41]}  Ne2+ {[%clk 0:00:59]} 28. Kh1 {[%clk 0:00:41]}  Nxc1 {[%clk 0:01:00]} 29. Rxc1 {[%clk 0:00:39]}  Bxd8 {[%clk 0:00:59]} 30. Kg1 {[%clk 0:00:24]}  d4 {[%clk 0:00:59]} 31. Kf1 {[%clk 0:00:23]}  a5 {[%clk 0:00:55]} 32. Ke2 {[%clk 0:00:20]}  Bb5+ {[%clk 0:00:46]} 33. Kd2 {[%clk 0:00:20]}  axb4 {[%clk 0:00:46]} 34. axb4 {[%clk 0:00:20]}  Be7 {[%clk 0:00:41]} 35. Rb1 {[%clk 0:00:19]}  Ke6 {[%clk 0:00:36]} 36. g3 {[%clk 0:00:19]}  Kd5 {[%clk 0:00:36]} 37. h4 {[%clk 0:00:19]}  f4 {[%clk 0:00:26]} 38. h5 {[%clk 0:00:18]}  fxg3 {[%clk 0:00:20]} 39. f4 {[%clk 0:00:17]}  Bg5 {[%clk 0:00:21]} 40. fxg5 {[%clk 0:00:17]}  g2 {[%clk 0:00:20]} 41. Rg1 {[%clk 0:00:16]}  Bf1 {[%clk 0:00:07]} 42. h6 {[%clk 0:00:15]} 1-0

[Event "January 2 Early 2024"]
[Site "https://www.chess.com"]
[Date "2024.01.02"]
[Round "6"]
[White "Iskusnyh, Sergei"]
[Black "Rietze, Clemens, Dr."]
[Result "1-0"]
[Board "74"]
[TimeControl "180+1"]
[WhiteFideId "4120027"]
[BlackFideId "24620351"]
[WhiteElo "2658"]
[BlackElo "2523"]
[WhiteTeam "RUS"]
[BlackTeam "GER"]
[WhiteClock "0:00:05"]
[BlackClock "0:00:00"]

1. d4 {[%clk 0:03:00]}  d5 {[%clk 0:02:55]} 2. c4 {[%clk 0:03:00]}  e6 {[%clk 0:02:56]} 3. Nf3 {[%clk 0:03:00]}  Nf6 {[%clk 0:02:55]} 4. g3 {[%clk 0:03:01]}  Be7 {[%clk 0:02:55]} 5. Bg2 {[%clk 0:03:01]}  O-O {[%clk 0:02:55]} 6. O-O {[%clk 0:03:01]}  dxc4 {[%clk 0:02:56]} 7. Qa4 {[%clk 0:02:57]}  Qd5 {[%clk 0:02:54]} 8. Nc3 {[%clk 0:02:50]}  Qc6 {[%clk 0:02:48]} 9. Ne5 {[%clk 0:02:37]}  Qxa4 {[%clk 0:02:39]} 10. Nxa4 {[%clk 0:02:38]}  Nd5 {[%clk 0:02:39]} 11. Nc3 {[%clk 0:02:16]}  Nb6 {[%clk 0:02:11]} 12. Bf4 {[%clk 0:01:57]}  c6 {[%clk 0:01:55]} 13. Rac1 {[%clk 0:01:52]}  f6 {[%clk 0:01:52]} 14. Nf3 {[%clk 0:01:51]}  Rd8 {[%clk 0:01:49]} 15. Ne4 {[%clk 0:01:38]}  Na6 {[%clk 0:01:42]} 16. Rfd1 {[%clk 0:01:26]}  g5 {[%clk 0:01:40]} 17. Bd2 {[%clk 0:01:21]}  Kf7 {[%clk 0:01:20]} 18. Ba5 {[%clk 0:01:19]}  Nc7 {[%clk 0:01:03]} 19. e3 {[%clk 0:01:02]}  Rd5 {[%clk 0:00:57]} 20. Be1 {[%clk 0:00:58]}  Rb5 {[%clk 0:00:46]} 21. Rc2 {[%clk 0:00:50]}  Na4 {[%clk 0:00:39]} 22. Rb1 {[%clk 0:00:42]}  Bd7 {[%clk 0:00:29]} 23. Bf1 {[%clk 0:00:41]}  Nb6 {[%clk 0:00:27]} 24. Ned2 {[%clk 0:00:36]}  g4 {[%clk 0:00:20]} 25. Nh4 {[%clk 0:00:35]}  Rg5 {[%clk 0:00:17]} 26. Nxc4 {[%clk 0:00:34]}  h5 {[%clk 0:00:15]} 27. e4 {[%clk 0:00:31]}  Rd8 {[%clk 0:00:14]} 28. Bd2 {[%clk 0:00:31]}  Rgg8 {[%clk 0:00:13]} 29. Na5 {[%clk 0:00:31]}  Rb8 {[%clk 0:00:12]} 30. Bf4 {[%clk 0:00:31]}  Rgc8 {[%clk 0:00:12]} 31. h3 {[%clk 0:00:29]}  gxh3 {[%clk 0:00:10]} 32. Bxh3 {[%clk 0:00:26]}  e5 {[%clk 0:00:10]} 33. Bxd7 {[%clk 0:00:25]}  Nxd7 {[%clk 0:00:11]} 34. dxe5 {[%clk 0:00:24]}  fxe5 {[%clk 0:00:11]} 35. Be3 {[%clk 0:00:24]}  a6 {[%clk 0:00:05]} 36. Nf3 {[%clk 0:00:22]}  Ke6 {[%clk 0:00:05]} 37. Rd1 {[%clk 0:00:21]}  Nb5 {[%clk 0:00:04]} 38. Nc4 {[%clk 0:00:19]}  Rf8 {[%clk 0:00:03]} 39. Kg2 {[%clk 0:00:17]}  Rbe8 {[%clk 0:00:03]} 40. Rh1 {[%clk 0:00:17]}  Rh8 {[%clk 0:00:03]} 41. a4 {[%clk 0:00:16]}  Nd6 {[%clk 0:00:02]} 42. Nxd6 {[%clk 0:00:14]}  Bxd6 {[%clk 0:00:03]} 43. Ng5+ {[%clk 0:00:14]}  Kf6 {[%clk 0:00:02]} 44. f4 {[%clk 0:00:14]}  Bc7 {[%clk 0:00:02]} 45. Rf2 {[%clk 0:00:12]}  Kg7 {[%clk 0:00:02]} 46. f5 {[%clk 0:00:12]}  Kf6 {[%clk 0:00:02]} 47. Ne6 {[%clk 0:00:12]}  Bb8 {[%clk 0:00:02]} 48. Bg5+ {[%clk 0:00:12]}  Kf7 {[%clk 0:00:02]} 49. Rd2 {[%clk 0:00:12]}  Nf6 {[%clk 0:00:02]} 50. Bxf6 {[%clk 0:00:11]}  Kxf6 {[%clk 0:00:03]} 51. Rd7 {[%clk 0:00:11]}  Re7 {[%clk 0:00:03]} 52. Rxe7 {[%clk 0:00:09]}  Kxe7 {[%clk 0:00:04]} 53. g4 {[%clk 0:00:09]}  Kf6 {[%clk 0:00:04]} 54. g5+ {[%clk 0:00:09]}  Kf7 {[%clk 0:00:04]} 55. Rd1 {[%clk 0:00:09]}  Ke7 {[%clk 0:00:04]} 56. Kg3 {[%clk 0:00:08]}  h4+ {[%clk 0:00:04]} 57. Kh3 {[%clk 0:00:08]}  Bd6 {[%clk 0:00:05]} 58. g6 {[%clk 0:00:08]}  b5 {[%clk 0:00:04]} 59. Ng5 {[%clk 0:00:06]}  c5 {[%clk 0:00:00]} 60. Rxd6 {[%clk 0:00:05]} 1-0